Cogmind - Beta 12 --- EXPLORER MODE // 2023.03.26 @ 05:39:28 Player: Rainynight Result: Destroyed by C-35 Carver with Carbide Saw Performance ------------- Evolutions (5) 2500 Regions Visited (13) 2600 Robots Destroyed (0) 0 Value Destroyed (0) 0 Prototype IDs (0) 0 Alien Tech Used (0) 0 Bonus (2889) 2889 TOTAL SCORE: 7989 Bonus ------- Devolution -13500 Fragile Parts 1250 No Salvage 1250 Pure Core 2500 Scavenger 5000 Simple Hacker 2402 Trapped 1000 Pacifist 1987 Entered DSFs 1000 Cogmind --------- Core Integrity 0/800 Matter 176/300 Energy 100/100 System Corruption 0% Temperature Cool (0) Movement Core (50) Location -5/DSF Parts ------- > --- POWER (4) -------- (None) > --- PROPULSION (4) --- (None) > --- UTILITY (4) ------ (None) > --- WEAPON (4) ------- (None) > --- INVENTORY (0) ---- (None) Peak State ------------ None Favorites ----------- Power None Propulsion None Utility None Weapon None Build | -11 -10 -9 -9 -8 -7 -7 -7 -7 -6 -5 -5 -5 -5 ------- Run | Jun Mat Mat Min Mat Fac Was Fac DSF Fac Fac Was Fac DSF Slots Evolved -4 | . 1 -1 . -1 -1 . . . -1 -1 . . . Power . | . . . . . . . . . . . . . . Propulsion -2 | . . -1 . . . . . . . -1 . . . Utility -3 | . . . . -1 -1 . . . -1 . . . . Weapon 1 | . 1 . . . . . . . . . . . . Parts Attached . | . . . . . . . . . . . . . . Power . | . . . . . . . . . . . . . . Engine . | . . . . . . . . . . . . . . Core . | . . . . . . . . . . . . . . Reactor . | . . . . . . . . . . . . . . Propulsion . | . . . . . . . . . . . . . . Treads . | . . . . . . . . . . . . . . Leg . | . . . . . . . . . . . . . . Wheel . | . . . . . . . . . . . . . . Hover . | . . . . . . . . . . . . . . Flight . | . . . . . . . . . . . . . . Utility . | . . . . . . . . . . . . . . Device . | . . . . . . . . . . . . . . Storage . | . . . . . . . . . . . . . . Processor . | . . . . . . . . . . . . . . Hackware . | . . . . . . . . . . . . . . Protection . | . . . . . . . . . . . . . . Artifact . | . . . . . . . . . . . . . . Weapon . | . . . . . . . . . . . . . . Energy Gun . | . . . . . . . . . . . . . . Energy Cannon . | . . . . . . . . . . . . . . Ballistic Gun . | . . . . . . . . . . . . . . Ballistic Cannon . | . . . . . . . . . . . . . . Launcher . | . . . . . . . . . . . . . . Special Weapon . | . . . . . . . . . . . . . . Impact Weapon . | . . . . . . . . . . . . . . Slashing Weapon . | . . . . . . . . . . . . . . Piercing Weapon . | . . . . . . . . . . . . . . Special Melee Weapon . | . . . . . . . . . . . . . . Unidentified Prototypes . | . . . . . . . . . . . . . . Parts Lost . | . . . . . . . . . . . . . . Power . | . . . . . . . . . . . . . . Propulsion . | . . . . . . . . . . . . . . Utility . | . . . . . . . . . . . . . . Weapon . | . . . . . . . . . . . . . . Highest Loss Streak . | . . . . . . . . . . . . . . To Critical Strikes . | . . . . . . . . . . . . . . Average Slot Usage (%) . | . . . . . . . . . . . . . . Naked Turns 914 | . 41 53 11 39 221 31 26 42 188 168 32 44 18 Heaviest Build . | . . . . . . . . . . . . . . Greatest Support 3 | 3 3 3 3 3 3 3 3 3 3 3 3 3 3 Greatest Overweight (x) . | . . . . . . . . . . . . . . Average Overweight (x) . | . . . . . . . . . . . . . . Largest Inventory Capacity . | . . . . . . . . . . . . . . Average Capacity . | . . . . . . . . . . . . . . Most Carried . | . . . . . . . . . . . . . . Average Carried . | . . . . . . . . . . . . . . Final Capacity . | . . . . . . . . . . . . . . Final Carried . | . . . . . . . . . . . . . . Class Distribution -------------------- 100% | Hacker-Mutant Dominant Class ---------------- Hacker-Mutant | -10/Materials Hacker-Mutant | -9/Materials Hacker-Mutant | -9/Mines Hacker-Mutant | -8/Materials Hacker-Mutant | -7/Factory Hacker-Mutant | -7/Waste Hacker-Mutant | -7/Factory Hacker-Mutant | -7/DSF Hacker-Mutant | -6/Factory Hacker-Mutant | -5/Factory Hacker-Mutant | -5/Waste Hacker-Mutant | -5/Factory Hacker-Mutant | -5/DSF Resources | -11 -10 -9 -9 -8 -7 -7 -7 -7 -6 -5 -5 -5 -5 ----------- Run | Jun Mat Mat Min Mat Fac Was Fac DSF Fac Fac Was Fac DSF Matter Collected 1 | . . . . . . . . 1 . . . . . Remotely . | . . . . . . . . . . . . . . Salvage Created . | . . . . . . . . . . . . . . Parts . | . . . . . . . . . . . . . . Haulers Intercepted . | . . . . . . . . . . . . . . Recyclers Shooed . | . . . . . . . . . . . . . . Parts Field Recycled . | . . . . . . . . . . . . . . Retrieved Matter . | . . . . . . . . . . . . . . Parts Self-Destructed . | . . . . . . . . . . . . . . Prevented . | . . . . . . . . . . . . . . Kills | -11 -10 -9 -9 -8 -7 -7 -7 -7 -6 -5 -5 -5 -5 ------- Run | Jun Mat Mat Min Mat Fac Was Fac DSF Fac Fac Was Fac DSF Combat Hostiles Destroyed . | . . . . . . . . . . . . . . Classes Destroyed . | . . . . . . . . . . . . . . Best Kill Streak . | . . . . . . . . . . . . . . Combat Bots Only . | . . . . . . . . . . . . . . Max Kills in Single Turn . | . . . . . . . . . . . . . . Gunslinging . | . . . . . . . . . . . . . . Exploded . | . . . . . . . . . . . . . . Melee . | . . . . . . . . . . . . . . Uniques/NPCs Destroyed . | . . . . . . . . . . . . . . Combat | -11 -10 -9 -9 -8 -7 -7 -7 -7 -6 -5 -5 -5 -5 -------- Run | Jun Mat Mat Min Mat Fac Was Fac DSF Fac Fac Was Fac DSF Damage Taken 2280 | 5 28 35 18 110 418 34 . 96 728 743 . . 65 Core 2280 | 5 28 35 18 110 418 34 . 96 728 743 . . 65 Absorbed by Shields 40 | . . . . . . . . . 23 . . . 17 Core Remaining (%) 68 | 99 95 . 93 86 . . . 31 9 . . . . Volleys Fired . | . . . . . . . . . . . . . . Largest . | . . . . . . . . . . . . . . Hottest . | . . . . . . . . . . . . . . Shots Fired . | . . . . . . . . . . . . . . Gun . | . . . . . . . . . . . . . . Cannon . | . . . . . . . . . . . . . . Launcher . | . . . . . . . . . . . . . . Special . | . . . . . . . . . . . . . . Kinetic . | . . . . . . . . . . . . . . Thermal . | . . . . . . . . . . . . . . Explosive . | . . . . . . . . . . . . . . Electromagnetic . | . . . . . . . . . . . . . . Robot Hit Streak . | . . . . . . . . . . . . . . Robot Miss Streak . | . . . . . . . . . . . . . . Penetration Max . | . . . . . . . . . . . . . . Secondary Targets . | . . . . . . . . . . . . . . Shots Hit Robots . | . . . . . . . . . . . . . . Core Hits 1 | . . . . . . . . . 1 . . . . Critical Kills . | . . . . . . . . . . . . . . Critical Parts Destroyed . | . . . . . . . . . . . . . . Critical Strikes . | . . . . . . . . . . . . . . Melee Attacks . | . . . . . . . . . . . . . . Impact . | . . . . . . . . . . . . . . Slashing . | . . . . . . . . . . . . . . Piercing . | . . . . . . . . . . . . . . Sneak Attacks . | . . . . . . . . . . . . . . Combat Hostiles . | . . . . . . . . . . . . . . Follow-up Attacks . | . . . . . . . . . . . . . . Damage Inflicted 114 | 11 . 12 . . 7 . . . 56 28 . . . Guns . | . . . . . . . . . . . . . . Cannons . | . . . . . . . . . . . . . . Explosions . | . . . . . . . . . . . . . . Melee . | . . . . . . . . . . . . . . Ramming 114 | 11 . 12 . . 7 . . . 56 28 . . . Kinetic . | . . . . . . . . . . . . . . Thermal . | . . . . . . . . . . . . . . Explosive . | . . . . . . . . . . . . . . Electromagnetic . | . . . . . . . . . . . . . . Impact . | . . . . . . . . . . . . . . Slashing . | . . . . . . . . . . . . . . Piercing . | . . . . . . . . . . . . . . Highest Corruption 6 | . . 1 1 . 3 6 6 6 4 . . . . Average Corruption 2 | . . 1 1 . 1 4 6 6 2 . . . . Corruption Purged . | . . . . . . . . . . . . . . Corruption Blocked . | . . . . . . . . . . . . . . Effects 3 | . . . . . . 1 1 1 . . . . . Message Errors 1 | . . . . . . 1 . . . . . . . Heat Flow Errors 1 | . . . . . . . 1 . . . . . . Energy Discharges 1 | . . . . . . . . 1 . . . . . Overload Shots . | . . . . . . . . . . . . . . Overflow Damage . | . . . . . . . . . . . . . . Projectiles . | . . . . . . . . . . . . . . Explosions . | . . . . . . . . . . . . . . Melee . | . . . . . . . . . . . . . . Knockbacks . | . . . . . . . . . . . . . . Impact . | . . . . . . . . . . . . . . Kinetic . | . . . . . . . . . . . . . . Secondary . | . . . . . . . . . . . . . . Self-Inflicted Damage 51 | 5 . 6 . . 3 . . . 25 12 . . . Shots . | . . . . . . . . . . . . . . Rammed 24 | 1 . 1 . . 1 . . . 15 6 . . . Targets Rammed 24 | 1 . 1 . . 1 . . . 15 6 . . . Kicked . | . . . . . . . . . . . . . . Crushed . | . . . . . . . . . . . . . . Highest Temperature 123 | . . . . . 1 . 123 . 28 . . . . Average Temperature 34 | . . . . . 1 . 63 . 13 . . . . Received Heat Transfer 456 | . . . 15 18 96 . . . 309 18 . . . Siege Activations . | . . . . . . . . . . . . . . Robots Corrupted . | . . . . . . . . . . . . . . Combat Hostiles . | . . . . . . . . . . . . . . Parts Fried . | . . . . . . . . . . . . . . Impact Corruptions . | . . . . . . . . . . . . . . Robots Melted . | . . . . . . . . . . . . . . Combat Hostiles . | . . . . . . . . . . . . . . Parts Melted . | . . . . . . . . . . . . . . Heat Transferred . | . . . . . . . . . . . . . . Parts Sabotaged . | . . . . . . . . . . . . . . Parts Stolen . | . . . . . . . . . . . . . . Parts Stripped . | . . . . . . . . . . . . . . Power Chain Reactions . | . . . . . . . . . . . . . . Missiles Intercepted . | . . . . . . . . . . . . . . Alert | -11 -10 -9 -9 -8 -7 -7 -7 -7 -6 -5 -5 -5 -5 ------- Run | Jun Mat Mat Min Mat Fac Was Fac DSF Fac Fac Was Fac DSF Peak Influence 207 | . 30 38 10 17 81 64 37 34 207 134 32 29 15 Initial 74 | . . 8 10 2 5 19 34 19 13 74 32 16 15 Average 42 | . 10 22 10 8 13 34 34 20 76 87 32 21 15 Maximum Alert Level 1 | . . . . . . . . . 1 . . . . Low Security (%) 98 | 100 100 100 100 100 100 100 100 100 90 100 100 100 100 Level 1 1 | . . . . . . . . . 9 . . . . Level 2 . | . . . . . . . . . . . . . . Level 3 . | . . . . . . . . . . . . . . Level 4 . | . . . . . . . . . . . . . . Level 5 . | . . . . . . . . . . . . . . High Security . | . . . . . . . . . . . . . . Max Security . | . . . . . . . . . . . . . . Squads Dispatched 10 | . . . . . 2 . 1 1 . 3 . 2 1 Investigation 6 | . . . . . 2 . 1 . . 1 . 2 . Extermination . | . . . . . . . . . . . . . . Reinforcement 4 | . . . . . . . . 1 . 2 . . 1 Assault . | . . . . . . . . . . . . . . Garrison . | . . . . . . . . . . . . . . Intercept . | . . . . . . . . . . . . . . Searches Triggered . | . . . . . . . . . . . . . . Construction Impeded 1 | . . . . . . . . . . 1 . . . Haulers Reinforced . | . . . . . . . . . . . . . . Active Scanning Responses . | . . . . . . . . . . . . . . Cargo Convoy Interrupts . | . . . . . . . . . . . . . . Stealth | -11 -10 -9 -9 -8 -7 -7 -7 -7 -6 -5 -5 -5 -5 --------- Run | Jun Mat Mat Min Mat Fac Was Fac DSF Fac Fac Was Fac DSF Distress Signals 2 | . . . . . . . . . 1 1 . . . Communications Jammed . | . . . . . . . . . . . . . . Distress Signals . | . . . . . . . . . . . . . . Times Spotted 71 | . 4 2 2 1 15 4 . 1 23 16 . 1 2 Peak Tracking Total 15 | . 4 2 2 1 14 5 . 1 15 13 . . 2 Tactical Retreats 11 | . . . . . 3 . . 1 5 2 . . . Traps | -11 -10 -9 -9 -8 -7 -7 -7 -7 -6 -5 -5 -5 -5 ------- Run | Jun Mat Mat Min Mat Fac Was Fac DSF Fac Fac Was Fac DSF Traps Triggered 32 | . 3 3 . 1 7 . . 3 5 8 . . 2 Indirectly . | . . . . . . . . . . . . . . Trap Hack Attempts . | . . . . . . . . . . . . . . Triggered . | . . . . . . . . . . . . . . Disarmed . | . . . . . . . . . . . . . . Reprogrammed . | . . . . . . . . . . . . . . Reused . | . . . . . . . . . . . . . . Traps Extracted . | . . . . . . . . . . . . . . Installed . | . . . . . . . . . . . . . . Triggered . | . . . . . . . . . . . . . . Machines | -11 -10 -9 -9 -8 -7 -7 -7 -7 -6 -5 -5 -5 -5 ---------- Run | Jun Mat Mat Min Mat Fac Was Fac DSF Fac Fac Was Fac DSF Machines Disabled . | . . . . . . . . . . . . . . Max in Single Turn . | . . . . . . . . . . . . . . Machines Repaired . | . . . . . . . . . . . . . . Machines Sabotaged . | . . . . . . . . . . . . . . Overloaded Fab Kills . | . . . . . . . . . . . . . . Hacking | -11 -10 -9 -9 -8 -7 -7 -7 -7 -6 -5 -5 -5 -5 --------- Run | Jun Mat Mat Min Mat Fac Was Fac DSF Fac Fac Was Fac DSF Machines Accessed 10 | . . . . . 2 . 2 . 1 1 . 4 . Terminals 10 | . . . . . 2 . 2 . 1 1 . 4 . Fabricators . | . . . . . . . . . . . . . . Repair Stations . | . . . . . . . . . . . . . . Recycling Units . | . . . . . . . . . . . . . . Scanalyzers . | . . . . . . . . . . . . . . Garrison Access . | . . . . . . . . . . . . . . Total Hacks 22 | . . . . . 3 . 5 . 2 2 . 10 . Successful 7 | . . . . . 1 . 1 . 1 . . 4 . Failed 15 | . . . . . 2 . 4 . 1 2 . 6 . Catastrophic 3 | . . . . . . . 1 . . 1 . 1 . Database Lockouts . | . . . . . . . . . . . . . . Manual . | . . . . . . . . . . . . . . Terminals 22 | . . . . . 3 . 5 . 2 2 . 10 . Fabricators . | . . . . . . . . . . . . . . Repair Stations . | . . . . . . . . . . . . . . Recycling Units . | . . . . . . . . . . . . . . Scanalyzers . | . . . . . . . . . . . . . . Garrison Access . | . . . . . . . . . . . . . . Terminal Hacks 7 | . . . . . 1 . 1 . 1 . . 4 . Open DSF 2 | . . . . . . . 1 . . . . 1 . Level Access Points 2 | . . . . . 1 . . . 1 . . . . Zone Layout 3 | . . . . . . . . . . . . 3 . Fabricator Hacks . | . . . . . . . . . . . . . . Repair Station Hacks . | . . . . . . . . . . . . . . Recycling Unit Hacks . | . . . . . . . . . . . . . . Scanalyzer . | . . . . . . . . . . . . . . Garrison Access Hacks . | . . . . . . . . . . . . . . Unauthorized Hacks . | . . . . . . . . . . . . . . Terminals . | . . . . . . . . . . . . . . Fabricators . | . . . . . . . . . . . . . . Repair Stations . | . . . . . . . . . . . . . . Recycling Units . | . . . . . . . . . . . . . . Scanalyzers . | . . . . . . . . . . . . . . Garrison Access . | . . . . . . . . . . . . . . Data Cores Recovered . | . . . . . . . . . . . . . . Used . | . . . . . . . . . . . . . . Hacking Detections 8 | . . . . . 1 . 2 . 1 1 . 3 . Full Trace Events 5 | . . . . . 1 . 1 . . 1 . 2 . Feedback Events 1 | . . . . . 1 . . . . . . . . Corruption 1 | . . . . . 1 . . . . . . . . Feedback Blocked . | . . . . . . . . . . . . . . Robot Schematics Acquired . | . . . . . . . . . . . . . . Robots Built . | . . . . . . . . . . . . . . Authchips . | . . . . . . . . . . . . . . Time . | . . . . . . . . . . . . . . Total Robot Build Rating . | . . . . . . . . . . . . . . Part Schematics Acquired . | . . . . . . . . . . . . . . Parts Built . | . . . . . . . . . . . . . . Authchips . | . . . . . . . . . . . . . . Time . | . . . . . . . . . . . . . . Total Part Build Rating . | . . . . . . . . . . . . . . Parts Repaired . | . . . . . . . . . . . . . . Time . | . . . . . . . . . . . . . . Parts Recycled . | . . . . . . . . . . . . . . Recycled Matter . | . . . . . . . . . . . . . . Retrieved Matter . | . . . . . . . . . . . . . . Retrieved Components . | . . . . . . . . . . . . . . Parts Scanalyzed . | . . . . . . . . . . . . . . Part Schematics Acquired . | . . . . . . . . . . . . . . Parts Damaged . | . . . . . . . . . . . . . . Bothacking | -11 -10 -9 -9 -8 -7 -7 -7 -7 -6 -5 -5 -5 -5 ------------ Run | Jun Mat Mat Min Mat Fac Was Fac DSF Fac Fac Was Fac DSF Used RIF Installer . | . . . . . . . . . . . . . . Robots Hacked . | . . . . . . . . . . . . . . Non-combat . | . . . . . . . . . . . . . . Combat . | . . . . . . . . . . . . . . Robot Hacks Applied . | . . . . . . . . . . . . . . Relay Couplers Released . | . . . . . . . . . . . . . . Fabnet Peak Effective % . | . . . . . . . . . . . . . . Robots Rewired 1 | . . . . . 1 . . . . . . . . Allies Hacked . | . . . . . . . . . . . . . . Hacks Repelled . | . . . . . . . . . . . . . . Allies | -11 -10 -9 -9 -8 -7 -7 -7 -7 -6 -5 -5 -5 -5 -------- Run | Jun Mat Mat Min Mat Fac Was Fac DSF Fac Fac Was Fac DSF Total Allies 1 | . . . . . 1 . . . . . . . . Largest Group 1 | . . . . . 1 . . . . . . . . Highest-Rated Group 20 | . . . . . 20 . . . . . . . . Highest-Rated Ally 20 | . . . . . 20 . . . . . . . . Total Orders . | . . . . . . . . . . . . . . Ally Attacks 1 | . . . . . 1 . . . . . . . . Total Damage 29 | . . . . . 29 . . . . . . . . Kills . | . . . . . . . . . . . . . . Allies Corrupted . | . . . . . . . . . . . . . . Allies Melted . | . . . . . . . . . . . . . . Intel | -11 -10 -9 -9 -8 -7 -7 -7 -7 -6 -5 -5 -5 -5 ------- Run | Jun Mat Mat Min Mat Fac Was Fac DSF Fac Fac Was Fac DSF Robot Analysis Total . | . . . . . . . . . . . . . . Derelict Logs Recovered . | . . . . . . . . . . . . . . Drone Launches . | . . . . . . . . . . . . . . Drone Recoveries . | . . . . . . . . . . . . . . Exploration | -11 -10 -9 -9 -8 -7 -7 -7 -7 -6 -5 -5 -5 -5 ------------- Run | Jun Mat Mat Min Mat Fac Was Fac DSF Fac Fac Was Fac DSF Turns Passed 924 | 10 41 53 11 39 221 31 26 42 188 168 32 44 18 Spaces Moved 1721 | 18 82 105 22 78 408 61 51 83 321 324 64 88 16 Core 1721 | 18 82 105 22 78 408 61 51 83 321 324 64 88 16 Treads . | . . . . . . . . . . . . . . Legs . | . . . . . . . . . . . . . . Wheels . | . . . . . . . . . . . . . . Hover . | . . . . . . . . . . . . . . Flight . | . . . . . . . . . . . . . . Fastest Speed 50 | 50 50 50 50 50 50 50 50 50 50 50 50 50 50 Average Speed 50 | 50 50 50 50 50 50 50 50 50 50 50 50 50 50 Slowest Speed 50 | 50 50 50 50 50 50 50 50 50 50 50 50 50 50 Overloaded Moves . | . . . . . . . . . . . . . . Propulsion Burnouts . | . . . . . . . . . . . . . . Robots Hopped . | . . . . . . . . . . . . . . Cave-ins Triggered . | . . . . . . . . . . . . . . Exploration Rate (%) 24 | 3 21 16 8 11 13 69 3 89 12 10 65 2 20 Regions Visited 13 Branch Regions 1 Pre-discovered Areas . | . . . . . . . . . . . . . . Known Exits Taken 8 | 1 1 1 1 1 . . 1 . 1 . . 1 . Unknown Exits Taken . | . . . . . . . . . . . . . . Scrap Searched . | . . . . . . . . . . . . . . Spaces Dug . | . . . . . . . . . . . . . . Terrain Destroyed . | . . . . . . . . . . . . . . Melee . | . . . . . . . . . . . . . . Projectile . | . . . . . . . . . . . . . . AOE . | . . . . . . . . . . . . . . Terrain Rammed . | . . . . . . . . . . . . . . Walls Destroyed . | . . . . . . . . . . . . . . Machines Disabled . | . . . . . . . . . . . . . . Actions | -11 -10 -9 -9 -8 -7 -7 -7 -7 -6 -5 -5 -5 -5 --------- Run | Jun Mat Mat Min Mat Fac Was Fac DSF Fac Fac Was Fac DSF Total 1772 | 18 81 105 21 77 425 60 50 82 347 330 63 87 26 Wait . | . . . . . . . . . . . . . . Move 1711 | 17 81 105 21 77 408 60 50 82 320 324 63 87 16 Hop . | . . . . . . . . . . . . . . Pick Up . | . . . . . . . . . . . . . . Fast Attach . | . . . . . . . . . . . . . . Attach . | . . . . . . . . . . . . . . Detach . | . . . . . . . . . . . . . . Swap . | . . . . . . . . . . . . . . Drop . | . . . . . . . . . . . . . . Fire . | . . . . . . . . . . . . . . Melee . | . . . . . . . . . . . . . . Ram 23 | 1 . . . . 1 . . . 15 6 . . . Kick . | . . . . . . . . . . . . . . Crush . | . . . . . . . . . . . . . . Escape Stasis 37 | . . . . . 15 . . . 12 . . . 10 Rewire 1 | . . . . . 1 . . . . . . . . Trap . | . . . . . . . . . . . . . . Miscellaneous . | . . . . . . . . . . . . . . Route ------- -11/Junkyard -10/Materials (discovered 2 exits: *Mat / *Min) -9/Materials -9/Mines -8/Materials -7/Factory (discovered 4 exits: Fac x4) -7/Waste -7/Factory -7/DSF -6/Factory (discovered 4 exits: *Fac x4) -5/Factory -5/Waste -5/Factory -5/DSF History --------- Turn | Location | Event 3 | -11/Junkyard | Identified exit to Materials 3 | -11/Junkyard | Discovered exit to Materials (range 15) 11 | -11/Junkyard | Entered Materials 11 | -10/Materials | Devolved, losing -1 slots: Weapon x1 41 | -10/Materials | Identified exit to Mines 41 | -10/Materials | Discovered exit to Mines (range 15) 48 | -10/Materials | Identified exit to Materials 48 | -10/Materials | Discovered exit to Materials (range 9) 52 | -10/Materials | Entered another Materials area 52 | -9/Materials | Devolved, losing 1 slot: Propulsion x-1 98 | -9/Materials | Identified exit to Mines 98 | -9/Materials | Discovered exit to Mines (range 7) 105 | -9/Materials | Entered Mines 112 | -9/Mines | Identified exit to Materials 112 | -9/Mines | Discovered exit to Materials (range 10) 116 | -9/Mines | Entered Materials 116 | -8/Materials | Devolved, losing 1 slot: Utility x-1 152 | -8/Materials | Identified exit to Factory 152 | -8/Materials | Discovered exit to Factory (range 8) 155 | -8/Materials | Entered Factory 155 | -7/Factory | Devolved, losing 1 slot: Utility x-1 305 | -7/Factory | Build established: Hacker-Mutant 352 | -7/Factory | Identified exit to Factory 376 | -7/Factory | Core integrity fell below 50% 376 | -7/Factory | Sucked down chute 376 | -7/Factory | Entered Waste 386 | -7/Waste | Spotted C-40 Crusher 387 | -7/Waste | Spotted C-40 Crusher 391 | -7/Waste | EMP discharged 397 | -7/Waste | Spotted C-40 Crusher 398 | -7/Waste | Identified exit to Factory 398 | -7/Waste | Discovered exit to Factory (range 16) 399 | -7/Waste | Spotted C-40 Crusher 407 | -7/Waste | Entered Factory 432 | -7/Factory | Identified exit to DSF 433 | -7/Factory | Entered DSF 454 | -7/DSF | Additional patrols routed to DSF 467 | -7/DSF | Discovered exit to Factory (range 16) 475 | -7/DSF | Entered Factory 475 | -6/Factory | Devolved, losing 1 slot: Utility x-1 572 | -6/Factory | Core integrity fell below 50% 611 | -6/Factory | Core integrity fell below 20% 631 | -6/Factory | Identified exit to Factory 663 | -6/Factory | Entered another Factory area 663 | -5/Factory | Devolved, losing 1 slot: Propulsion x-1 749 | -5/Factory | Identified exit to Upper Caves 749 | -5/Factory | Discovered exit to Upper Caves (range 8) 782 | -5/Factory | Core integrity fell below 50% 821 | -5/Factory | Core integrity fell below 20% 831 | -5/Factory | Sucked down chute 831 | -5/Factory | Entered Waste 831 | -5/Waste | The area was eerily silent 858 | -5/Waste | Identified exit to Factory 858 | -5/Waste | Discovered exit to Factory (range 12) 863 | -5/Waste | Entered Factory 879 | -5/Factory | Identified exit to DSF 907 | -5/Factory | Entered DSF 924 | -5/DSF | Additional patrols routed to DSF 925 | -5/DSF | Destroyed by C-35 Carver with Carbide Saw Last Messages --------------- 00911_ A bubble of rippling energy engulfs the area. 00911_ Field strength at 94. 00912_ Field strength at 88. 00913_ ALERT: Suspicious intruders detected, dispatching Cutter reinforcements to area. 00913_ Field strength at 82. 00914_ Field strength at 76. 00915_ Knocked back. 00917_ Field strength at 65. 00918_ Triggered Stasis Trap. 00918_ A bubble of rippling energy engulfs the area. 00918_ Field strength at 94. 00919_ Field strength at 88. 00920_ Field strength at 78. 00921_ Field strength at 72. 00922_ Field strength at 66. 00923_ Field strength at 55. 00924_ Hostiles detected in DSF, routing additional patrols. 00924_ Field strength at 49. 00925_ Field strength at 43. Map ----- +----------------------------------------------------+ | | | | | | | | | | | | | | | | | | | | | | | | | | | ????????????????????????????????????? | | ????????????????????????????????????? | | ????????????????????????????????????? | | ?????????????????????????##?????????? | | ????????????????????????#""?????????? | | ????????????????????????#"#?????????? | | ???????????###???#?????##"####??????? | | ???????#]]!?!!! ## #####"""""#??????? | | ???????#]]!!!!!# # ##"""""#??????? | | ?? ^ ""##"????? | | ?? """""????? | | ???#!!!### ### *%## c ""###????? | | ?????????# ????# #*=###@ ###??????? | | ???????????????########?# #????????? | | ????????????????????????* #???????? | | ????????????????????????= #???????? | | ???????????????????????## ##???????? | | ????????????????????????= ????????? | | ????????????????????????[ ????????? | | ????????????????????????] #???????? | | ????????????????????????# ##???????? | | ????????????????????????# ????????? | | ????????????????????????? ????????? | | ????????????????????????? !????????? | | ???????????H????????????? !????????? | | ????????????????????????? !????????? | | ????????????????????????? !????????? | | ????????????????????????? !????????? | | ????????????????????????????????????? | | ????????????????????????????????????? | | ????????????????????????????????????? | | ????????????????????????????????????? | | ????????????????????????????????????? | | ????????????????????????????????????? | | ????????????????????????????????????? | | ????????????????????????????????????? | | ????????????????????????????????????? | +----------------------------------------------------+ Best States ------------- Heat Dissipation 20 Energy Generation 5 Energy Capacity 100 Matter Stores 176 Matter Capacity 300 Sight Range 16 Terrain Scan Density 10 Resistance: KI 35 Resistance: TH 35 Resistance: EX 35 Resistance: EM 35 Resistance: I 35 Resistance: S 35 Resistance: P 35 Evasion (%) 50 Offensive Hacking 20 Item Schematics ----------------- None Robot Schematics ------------------ None Fabricated ------------ Nothing Alien Tech Used ----------------- None Achievements -------------- None Challenges ------------ Devolution Fragile Parts No Salvage Pure Core Scavenger Simple Hacker Trapped Game ------ Seed CouplerTachyonLoader Manual? 0 Play Time 00:10:22 Cumulative 281.9 hours Start 2023.03.26 @ 05:29:26 End 2023.03.26 @ 05:39:28 Sessions 1 Manual Loads 0 Difficulty Explorer Special Mode None Game No. 275 Rogue 254 Adventurer 1 Explorer 20 Win Type - Total 16 Types 13/1/0/2/0/0/0/0/0 Lore% 74 Gallery% 80 Achievement% 72 Wizard Run 0 Options --------- ASCII 1 Keyboard 1 Movement Numpad Keybinds 1 Fullscreen 1 Font 18/X11 Map View 76x50 Tactical HUD 1 Map Filters NONE Filters NONE Steam 1 RUN: 107aa9b3-ffb5-4747-99cf-f43782663b4d